[Event "Rapid del Mercoledì"]
[Site "Chess.com"]
[Date "2020.04.29"]
[Round "5"]
[White "riccardocanossa"]
[Black "Luca090267"]
[Result "1/2-1/2"]
[WhiteElo "1313"]
[BlackElo "1370"]
[TimeControl "720+3"]
[EndTime "13:43:01 PDT"]
[Termination "Patta per materiale insufficiente"]

1. d4 {[%clk 0:12:00.5]} 1... Nf6 {[%clk 0:12:00.6]} 2. c4 {[%clk 0:11:57]} 2...
g6 {[%clk 0:12:02.2]} 3. Nc3 {[%clk 0:11:45.2]} 3... Bg7 {[%clk 0:12:03.7]} 4.
Nf3 {[%clk 0:11:42.9]} 4... O-O {[%clk 0:12:05]} 5. Bg5 {[%clk 0:11:34.5]} 5...
d6 {[%clk 0:12:00.3]} 6. e4 {[%clk 0:11:28.3]} 6... c5 {[%clk 0:11:46.4]} 7. d5
{[%clk 0:11:27.1]} 7... Na6 {[%clk 0:11:30.9]} 8. Be2 {[%clk 0:11:24.9]} 8...
Nc7 {[%clk 0:11:32.4]} 9. O-O {[%clk 0:11:21.1]} 9... e6 {[%clk 0:11:32.8]} 10.
Rc1 {[%clk 0:11:04.9]} 10... exd5 {[%clk 0:11:34]} 11. cxd5 {[%clk 0:11:02]}
11... Bg4 {[%clk 0:11:23.5]} 12. h3 {[%clk 0:11:00.4]} 12... Bxf3 {[%clk
0:11:25.3]} 13. Bxf3 {[%clk 0:10:59.9]} 13... h6 {[%clk 0:11:20.9]} 14. Bh4
{[%clk 0:10:52.2]} 14... g5 {[%clk 0:11:13.5]} 15. Bg3 {[%clk 0:10:52.1]} 15...
Re8 {[%clk 0:11:12.5]} 16. Re1 {[%clk 0:10:39.6]} 16... a6 {[%clk 0:11:11.7]}
17. e5 {[%clk 0:10:20.9]} 17... dxe5 {[%clk 0:11:11.2]} 18. Bxe5 {[%clk
0:10:20.6]} 18... Rc8 {[%clk 0:10:55.9]} 19. d6 {[%clk 0:10:04.3]} 19... Na8
{[%clk 0:10:00.9]} 20. Bxf6 {[%clk 0:09:59.5]} 20... Rxe1+ {[%clk 0:09:50.6]}
21. Qxe1 {[%clk 0:09:57.6]} 21... Bxf6 {[%clk 0:09:49.2]} 22. Bxb7 {[%clk
0:09:50.2]} 22... Rb8 {[%clk 0:09:43.7]} 23. Bxa6 {[%clk 0:09:44.3]} 23... Qxd6
{[%clk 0:09:36.1]} 24. Ne4 {[%clk 0:09:30.3]} 24... Qxa6 {[%clk 0:09:33.8]} 25.
Nxc5 {[%clk 0:09:11]} 25... Qd6 {[%clk 0:08:49.8]} 26. Ne4 {[%clk 0:08:49.5]}
26... Qe5 {[%clk 0:08:43.8]} 27. Nxf6+ {[%clk 0:08:49.5]} 27... Qxf6 {[%clk
0:08:44.9]} 28. b3 {[%clk 0:08:31.8]} 28... Nb6 {[%clk 0:08:24]} 29. Qe4 {[%clk
0:08:19.3]} 29... Qe6 {[%clk 0:07:13.2]} 30. Qf3 {[%clk 0:07:32.5]} 30... Re8
{[%clk 0:06:33.4]} 31. Rc6 {[%clk 0:07:11.2]} 31... Qe1+ {[%clk 0:06:32.8]} 32.
Kh2 {[%clk 0:07:09.5]} 32... Qe5+ {[%clk 0:06:18.7]} 33. g3 {[%clk 0:06:11.5]}
33... Nd7 {[%clk 0:05:36.6]} 34. Rxh6 {[%clk 0:05:59.5]} 34... Qg7 {[%clk
0:05:36]} 35. Rd6 {[%clk 0:05:46.8]} 35... Ne5 {[%clk 0:05:29.3]} 36. Qf5 {[%clk
0:05:24.2]} 36... Rf8 {[%clk 0:04:57.1]} 37. a4 {[%clk 0:05:12]} 37... f6 {[%clk
0:04:52.2]} 38. a5 {[%clk 0:05:03.7]} 38... Qg6 {[%clk 0:04:51.7]} 39. Qxg6+
{[%clk 0:04:44.9]} 39... Nxg6 {[%clk 0:04:52.5]} 40. a6 {[%clk 0:04:39.6]} 40...
Rf7 {[%clk 0:04:40.8]} 41. Rb6 {[%clk 0:04:30]} 41... Ne5 {[%clk 0:04:23.2]} 42.
Rb7 {[%clk 0:04:23.2]} 42... Rxb7 {[%clk 0:04:20.2]} 43. axb7 {[%clk 0:04:23.4]}
43... Nc6 {[%clk 0:04:21.9]} 44. b4 {[%clk 0:04:14.5]} 44... Kf7 {[%clk
0:04:21.8]} 45. Kg2 {[%clk 0:04:08.1]} 45... Ke7 {[%clk 0:04:23.5]} 46. Kf3
{[%clk 0:04:02.9]} 46... Kd7 {[%clk 0:04:24.9]} 47. Kg4 {[%clk 0:03:23.6]} 47...
Kc7 {[%clk 0:04:16.8]} 48. Kf5 {[%clk 0:03:11.6]} 48... Nxb4 {[%clk 0:04:12.9]}
49. Kxf6 {[%clk 0:03:00.1]} 49... Nd3 {[%clk 0:04:10.9]} 50. f4 {[%clk
0:02:54.2]} 50... gxf4 {[%clk 0:04:11.7]} 51. gxf4 {[%clk 0:02:43.8]} 51... Nxf4
{[%clk 0:04:12.8]} 52. h4 {[%clk 0:02:36.1]} 52... Kxb7 {[%clk 0:04:11.7]} 53.
Kg5 {[%clk 0:02:35.3]} 53... Ne6+ {[%clk 0:04:12.6]} 54. Kh6 {[%clk 0:02:33]}
54... Kc7 {[%clk 0:04:10.5]} 55. h5 {[%clk 0:02:34.3]} 55... Kd7 {[%clk
0:04:12.2]} 56. Kg6 {[%clk 0:02:35.1]} 56... Nf4+ {[%clk 0:04:12.6]} 57. Kh6
{[%clk 0:02:31.2]} 57... Nxh5 {[%clk 0:04:15]} 1/2-1/2

[Event "Rapid del Mercoledì"]
[Site "Chess.com"]
[Date "2020.04.29"]
[Round "5"]
[White "fausto2p"]
[Black "moha1812med"]
[Result "0-1"]
[WhiteElo "1006"]
[BlackElo "1024"]
[TimeControl "720+3"]
[EndTime "13:44:09 PDT"]
[Termination "moha1812med ha vinto per abbandono"]

1. d4 {[%clk 0:12:02.9]} 1... Nf6 {[%clk 0:11:58.1]} 2. c4 {[%clk 0:12:04.2]}
2... g6 {[%clk 0:11:59.8]} 3. Nc3 {[%clk 0:12:05.5]} 3... Bg7 {[%clk 0:12:01.5]}
4. e4 {[%clk 0:12:07.1]} 4... d6 {[%clk 0:12:02.2]} 5. f3 {[%clk 0:11:58.8]}
5... Nbd7 {[%clk 0:12:01.1]} 6. Be3 {[%clk 0:12:00.1]} 6... O-O {[%clk
0:12:00.3]} 7. Nge2 {[%clk 0:11:48.8]} 7... e5 {[%clk 0:11:40.8]} 8. d5 {[%clk
0:11:49.7]} 8... Nc5 {[%clk 0:11:35.8]} 9. g4 {[%clk 0:11:31.1]} 9... Bd7 {[%clk
0:11:15.2]} 10. b3 {[%clk 0:11:32.4]} 10... Ne8 {[%clk 0:10:30.7]} 11. Ng3
{[%clk 0:11:24.6]} 11... Bc8 {[%clk 0:10:14.2]} 12. Qd2 {[%clk 0:11:23.2]} 12...
a5 {[%clk 0:10:10.9]} 13. Bh6 {[%clk 0:10:56.6]} 13... Bxh6 {[%clk 0:09:33.6]}
14. Qxh6 {[%clk 0:10:56.4]} 14... Bd7 {[%clk 0:08:11.6]} 15. h4 {[%clk
0:10:51.7]} 15... Qf6 {[%clk 0:06:28.5]} 16. Be2 {[%clk 0:09:50]} 16... Qf4
{[%clk 0:04:58.3]} 17. Qxf4 {[%clk 0:09:28]} 17... exf4 {[%clk 0:04:59.8]} 18.
Nf1 {[%clk 0:08:45.9]} 18... Nf6 {[%clk 0:05:01.1]} 19. O-O-O {[%clk 0:08:28.1]}
19... Rae8 {[%clk 0:05:02]} 20. Bd3 {[%clk 0:06:47.7]} 20... Nxd3+ {[%clk
0:04:57.6]} 21. Rxd3 {[%clk 0:06:48.7]} 21... h6 {[%clk 0:04:59]} 22. Ne2 {[%clk
0:06:32.2]} 22... g5 {[%clk 0:04:55.3]} 23. hxg5 {[%clk 0:06:29.9]} 23... hxg5
{[%clk 0:04:56.8]} 24. Nc3 {[%clk 0:05:55.2]} 24... Re7 {[%clk 0:04:53]} 25. Rd2
{[%clk 0:05:54.7]} 25... Ree8 {[%clk 0:04:51.3]} 26. Rdh2 {[%clk 0:05:55.6]}
26... Kg7 {[%clk 0:04:47.2]} 27. Rh5 {[%clk 0:05:44]} 27... Nxh5 {[%clk
0:04:47.7]} 28. Rxh5 {[%clk 0:05:37.3]} 28... Rh8 {[%clk 0:04:47.3]} 29. Rxg5+
{[%clk 0:05:23.2]} 29... Kf6 {[%clk 0:04:39.1]} 30. Rh5 {[%clk 0:05:03.5]} 30...
Rxh5 {[%clk 0:04:40.2]} 31. gxh5 {[%clk 0:05:04.6]} 31... Rh8 {[%clk 0:04:42.4]}
32. Kb2 {[%clk 0:04:28.9]} 32... Rxh5 {[%clk 0:04:42.9]} 33. Ka3 {[%clk
0:04:19.8]} 33... Rh3 {[%clk 0:04:41.5]} 34. Nd2 {[%clk 0:04:19.8]} 34... Rh2
{[%clk 0:04:42.8]} 35. Ncb1 {[%clk 0:04:10.5]} 35... c6 {[%clk 0:04:37.2]} 36.
Ka4 {[%clk 0:03:58.9]} 36... cxd5+ {[%clk 0:04:34.5]} 37. Kxa5 {[%clk
0:04:00.6]} 37... dxe4 {[%clk 0:04:30.9]} 38. fxe4 {[%clk 0:04:01.7]} 38... Bc6
{[%clk 0:04:22.7]} 39. Kb6 {[%clk 0:03:56.3]} 39... Rh3 {[%clk 0:03:18.1]} 40.
b4 {[%clk 0:03:51]} 40... f3 {[%clk 0:03:18]} 41. Nxf3 {[%clk 0:03:47.3]} 41...
Rxf3 {[%clk 0:03:19.3]} 42. Kc7 {[%clk 0:03:28.1]} 42... Bxe4 {[%clk 0:03:19.9]}
43. Kxd6 {[%clk 0:03:26.7]} 43... Bxb1 {[%clk 0:03:14.2]} 44. a4 {[%clk
0:03:11.6]} 44... Kg6 {[%clk 0:03:13.8]} 45. c5 {[%clk 0:02:54.6]} 45... Rd3+
{[%clk 0:03:09.6]} 46. Kc7 {[%clk 0:02:55.2]} 46... Rb3 {[%clk 0:03:06.8]} 47.
b5 {[%clk 0:02:52.1]} 47... Be4 {[%clk 0:03:07]} 48. b6 {[%clk 0:02:28.9]} 48...
f5 {[%clk 0:03:07.9]} 49. a5 {[%clk 0:02:24.4]} 49... f4 {[%clk 0:03:08.1]} 50.
a6 {[%clk 0:02:22.2]} 50... bxa6 {[%clk 0:03:05.7]} 51. c6 {[%clk 0:02:19.2]}
51... Bxc6 {[%clk 0:02:57.7]} 52. Kxc6 {[%clk 0:02:19.6]} 52... Rxb6+ {[%clk
0:02:59.3]} 53. Kxb6 {[%clk 0:02:20.3]} 53... f3 {[%clk 0:03:01.4]} 0-1